bitfinex-derivatives/quotes_ETHF0:USTF0_20251223
["timestamp","ask_amount","ask_price","bid_price","bid_amount"]
[1766510137077,3.55949,2951.4,2950.7,3.39]
[1766510137273,4.73277926,2951.4,2950.7,3.39]
[1766510138175,1.17328926,2951.2,2950.6,6.004]
[1766510138373,1.17328926,2951.2,2950.8,3.39]
[1766510138870,1.17328926,2951.2,2950.5,6.00908906]
[1766510139068,1.17328926,2951.2,2950.6,3.39]
[1766510139677,1.17328926,2951.0,2950.6,3.39]
[1766510142175,3.55949,2951.4,2950.6,3.39]
[1766510142475,1.17328926,2951.1,2950.6,3.39]
[1766510144382,1.17328926,2950.9,2950.2,0.00267199]
[1766510144678,1.17328926,2950.7,2950.3,9.394]
[1766510145072,1.17328926,2950.7,2950.3,3.39]
[1766510145274,1.17328926,2950.9,2950.3,3.39]
[1766510145475,1.17837832,2950.9,2950.3,3.39508906]
[1766510146378,1.17328926,2950.7,2950.4,3.39]
[1766510148579,1.17328926,2950.7,2950.3,6.00908906]
[1766510148580,1.17328926,2950.7,2950.3,0.00508906]
[1766510148784,1.17328926,2950.7,2950.4,3.39]
[1766510150381,0.00508906,2950.9,2950.4,3.39]
[1766510150579,1.17328926,2950.8,2950.4,3.39]
[1766510151975,1.17328926,2950.8,2950.3,0.00508906]
[1766510152181,1.17328926,2950.8,2950.3,9.39808906]
[1766510152383,1.17328926,2950.4,2950.0,9.393]
[1766510153374,1.17328926,2950.4,2950.0,9.39674234]
[1766510154179,3.55953,2950.8,2950.0,0.00374234]
[1766510154377,1.17328926,2950.1,2949.7,3.39]
[1766510154683,1.17328926,2950.1,2949.7,3.398]
[1766510155281,3.39,2950.5,2949.7,3.40179478]
[1766510155477,1.17328926,2950.1,2949.8,0.00508906]
[1766510155677,1.17328926,2949.9,2948.2,0.16967]
[1766510155981,1.17328926,2949.9,2948.8,14.23]
[1766510156283,3.39,2950.2,2948.9,9.393]
[1766510156284,1.17328926,2949.7,2948.9,9.393]
[1766510156484,1.17328926,2949.9,2948.9,10.56628926]
[1766510156786,1.17328926,2949.9,2949.1,0.00508906]
[1766510156975,1.17328926,2950.1,2949.2,3.39]
[1766510157179,3.39,2950.2,2949.3,7.17628926]
[1766510157677,3.39,2950.2,2949.3,6.003]
[1766510158682,1.17328926,2950.1,2949.3,6.003]
[1766510160782,0.3663,2950.2,2949.3,7.17628926]
[1766510160987,0.16956,2950.3,2949.3,7.17628926]
[1766510161183,1.34280926,2951.0,2949.9,1.17328926]
[1766510161487,0.16952,2951.0,2950.1,1.17328926]
[1766510161880,1.34280926,2951.0,2950.0,10.56728926]
[1766510162078,1.17328926,2950.8,2950.0,9.394]
[1766510163186,1.34280926,2951.0,2950.0,10.56728926]
[1766510164284,4.56328926,2951.2,2950.2,1.17328926]
[1766510164489,4.56328926,2951.2,2950.3,3.39]
[1766510164787,3.39,2951.5,2950.4,6.05628926]
[1766510165092,1.17328926,2951.3,2950.5,9.393]
[1766510165486,0.00508906,2951.2,2950.6,9.39808906]
[1766510168290,3.39,2951.5,2950.6,9.39808906]
[1766510168500,3.39,2952.1,2951.0,1.17328926]
[1766510168792,3.39,2952.1,2951.1,9.393]
[1766510168988,1.17328926,2952.0,2951.1,9.393]
[1766510169391,0.00508906,2951.8,2951.1,9.393]
[1766510169588,0.00762435,2951.8,2951.1,9.39548787]
[1766510171392,0.00762435,2951.8,2951.2,1.17328926]
[1766510171694,3.39,2952.1,2951.4,1.17328926]
[1766510171896,3.39,2952.1,2951.5,9.392]
[1766510172098,0.38658149,2952.1,2951.5,9.392]
[1766510172693,0.38938653,2952.1,2951.5,9.392]
[1766510172894,0.00280504,2952.1,2951.5,9.392]
[1766510175896,5.04e-06,2952.1,2951.5,9.392]
[1766510178706,1.17212693,2952.0,2951.4,9.389]
[1766510178999,5.04e-06,2952.1,2951.5,6.0]
[1766510179906,5.04e-06,2952.1,2951.1,0.00248787]
[1766510180199,5.04e-06,2952.1,2951.2,9.389]
[1766510180593,5.04e-06,2952.1,2951.3,1.17212693]
[1766510182991,5.04e-06,2952.1,2951.2,9.389]
[1766510183800,5.04e-06,2952.1,2951.3,9.389]
[1766510185506,5.04e-06,2952.1,2951.1,1.1746148]
[1766510185800,5.04e-06,2952.1,2951.3,1.17212693]
[1766510186600,5.04e-06,2952.1,2951.3,2.46712693]
[1766510187505,5.04e-06,2952.1,2951.3,1.17212693]
[1766510189705,5.04e-06,2952.1,2951.5,1.17212693]
[1766510189901,5.04e-06,2952.1,2951.2,4.839]
[1766510189902,3.389,2952.9,2951.7,1.17212693]
[1766510190205,3.55841,2952.9,2952.0,0.00508906]
[1766510190502,3.55841,2952.9,2952.1,7.808]
[1766510190809,3.56209106,2952.9,2952.1,7.808]
[1766510191208,3.389,2953.4,2952.1,8.98012693]
[1766510191507,3.389,2953.4,2952.0,0.16188906]
[1766510191508,1.17212693,2953.1,2952.0,0.16188906]
[1766510191699,1.17212693,2953.1,2952.1,3.581]
[1766510192004,4.56112693,2953.1,2952.1,3.581]
[1766510192305,1.17212693,2952.8,2952.0,0.00508906]
[1766510192601,3.389,2952.7,2952.0,0.00508906]
[1766510193004,1.17212693,2952.5,2951.5,0.1602]
[1766510193199,1.17212693,2951.8,2951.2,3.388]
[1766510193400,1.17212693,2951.5,2950.9,3.388]
[1766510193604,1.17212693,2951.2,2950.6,3.388]
[1766510194006,0.00505976,2951.2,2950.6,0.00508026]
[1766510194501,0.00505976,2951.2,2950.6,0.00863187]
[1766510195511,0.00505976,2951.2,2950.6,3.39763187]
[1766510196210,0.00505976,2951.2,2950.6,0.00863187]
[1766510196407,3.39405976,2951.2,2949.3,34.06061]
[1766510196708,3.39405976,2951.2,2949.4,12.018]
[1766510197310,3.39405976,2951.2,2950.0,0.00508026]
[1766510197608,3.39405976,2951.2,2950.1,7.669]
[1766510199016,3.39405976,2951.2,2950.0,0.00508026]
[1766510199218,3.39405976,2951.2,2950.1,9.39]
[1766510199607,3.39405976,2951.2,2950.0,0.00508026]
[1766510199812,2.05118009,2951.0,2949.6,3.389]
[1766510200006,9.479,2950.9,2949.6,3.389]
[1766510200706,0.16954,2950.7,2950.0,0.00508026]
[1766510200908,3.389,2950.6,2950.0,0.00508026]
[1766510203115,3.389,2950.6,2949.7,3.389]
[1766510204106,3.389,2950.6,2949.9,0.00508026]
[1766510205814,3.389,2950.6,2949.7,3.389]
[1766510206313,3.389,2950.6,2949.6,3.39]
[1766510206907,3.389,2950.6,2949.4,0.16708104]
[1766510207204,3.389,2950.6,2949.5,3.39]
[1766510207812,3.389,2950.6,2949.4,0.00398104]
[1766510208111,3.55854,2950.6,2949.7,0.0034074]
[1766510208308,3.55854,2950.6,2949.4,0.00398104]
[1766510208517,0.16955,2950.4,2949.4,0.00398104]
[1766510208817,3.39,2950.3,2949.4,0.00398104]
[1766510212412,3.39,2950.3,2948.5,1.46466]
[1766510212413,9.48,2950.3,2948.6,8.476]
[1766510212613,2.05118009,2950.0,2948.8,3.39]
[1766510212815,0.00508026,2949.7,2948.8,3.39]
[1766510213118,3.39,2949.6,2948.8,3.39]
[1766510213423,3.39,2949.6,2948.8,3.39414923]
[1766510221015,3.5596,2949.6,2948.8,3.39414923]
[1766510221216,3.5596,2949.6,2948.8,0.00414923]
[1766510221424,0.1696,2949.5,2948.6,3.391]
[1766510221922,3.39,2949.6,2946.1,1.295]
[1766510221923,0.16963,2949.0,2946.1,1.295]
[1766510222224,3.485,2949.6,2947.4,0.16972]
[1766510222225,3.391,2949.2,2947.4,0.16972]
[1766510222524,3.391,2949.2,2947.4,0.44004456]
[1766510222725,3.391,2949.2,2947.4,0.17386167]
[1766510223228,3.391,2949.2,2947.5,0.16971]
[1766510223428,3.391,2949.2,2947.6,3.391]
[1766510224120,3.391,2949.2,2947.7,6.007]
[1766510224918,3.391,2949.2,2947.6,0.1628]
[1766510225120,3.391,2949.2,2947.7,17.877]
[1766510225623,0.16964,2948.9,2947.8,9.399]
[1766510225838,3.391,2948.8,2947.8,9.399]
[1766510226021,3.391,2948.8,2947.6,0.1384]
[1766510226226,3.391,2948.8,2947.7,9.4]
[1766510228227,3.391,2948.8,2947.6,0.1384]
[1766510228427,3.391,2948.8,2947.7,3.517]
[1766510230136,3.391,2948.8,2947.8,3.392]
[1766510230137,0.16965,2948.7,2947.8,3.392]
[1766510230334,0.00258084,2948.9,2947.8,3.392]
[1766510230935,0.00258084,2948.9,2947.9,6.009]
[1766510231139,0.00258084,2948.9,2947.4,0.00414167]
[1766510231339,0.00258084,2948.9,2947.5,17.881]
[1766510231640,0.00258084,2948.9,2947.4,0.00414167]
[1766510231831,0.00258084,2948.9,2947.6,6.009]
[1766510235042,3.392,2949.5,2947.6,6.009]
[1766510235341,1.01135888,2949.4,2947.8,0.1697]
[1766510235540,1.01135888,2949.4,2947.9,3.392]
[1766510235944,1.01374554,2949.4,2947.9,3.392]
[1766510237844,0.00238666,2949.4,2948.0,0.16969]
[1766510238048,3.392,2949.5,2948.8,1.17413089]
[1766510238249,3.392,2949.5,2948.9,3.392]
[1766510239147,0.16957,2950.1,2949.1,1.17413089]
[1766510239348,0.99530506,2950.0,2949.2,3.392]
[1766510239541,0.16957,2950.1,2949.3,3.774]
[1766510239748,4.56613089,2950.3,2949.3,4.94813089]
[1766510239949,1.17413089,2950.1,2949.3,3.774]
[1766510240141,0.00508026,2950.0,2949.4,0.00508025]
[1766510240537,0.00508026,2950.0,2949.4,3.39708025]
[1766510243759,1.17413089,2949.5,2949.0,3.392]
[1766510244058,1.17413089,2949.6,2949.0,3.392]
[1766510244362,3.392,2949.8,2949.0,3.392]
[1766510244553,4.56613089,2949.8,2949.0,3.392]
[1766510248358,1.17413089,2949.6,2948.6,1.17413089]
[1766510248664,1.17413089,2949.6,2948.7,9.399]
[1766510249559,4.56613089,2949.8,2948.7,9.399]
[1766510251464,4.56613089,2949.8,2948.8,9.399]
[1766510253067,3.392,2949.8,2949.0,1.17413089]
[1766510253465,3.392,2949.8,2949.1,3.391]
[1766510254667,4.56613089,2949.8,2949.1,3.391]
[1766510254869,3.392,2949.8,2949.1,3.391]
[1766510255171,0.17465026,2950.0,2949.2,6.008]
[1766510255564,0.00508026,2950.0,2949.3,1.17413089]
[1766510255868,0.069,2950.4,2949.5,1.17413089]
[1766510255869,3.391,2950.4,2949.5,1.17413089]
[1766510256172,3.391,2950.4,2949.6,6.008]
[1766510256369,3.391,2950.4,2949.7,3.391]
[1766510256774,0.00508026,2950.3,2949.8,0.00508026]
[1766510256968,0.00544699,2950.3,2949.8,0.00771743]
[1766510257168,3.41,2950.8,2949.8,0.00771743]
[1766510257169,0.16949,2951.4,2950.2,1.17413089]
[1766510257467,1.17413089,2951.3,2950.3,10.57313089]
[1766510257662,1.17413089,2951.3,2950.4,3.391]
[1766510257857,3.56049,2951.4,2949.8,1.18184832]
[1766510257858,1.17413089,2950.7,2949.8,0.00771743]
[1766510258063,0.00508026,2950.5,2950.2,6.007]
[1766510258259,0.00422138,2950.7,2950.3,3.391]
[1766510258669,4.56513089,2951.1,2950.3,3.391]
[1766510258872,1.17413089,2950.9,2950.3,3.391]
[1766510259262,1.17921115,2950.9,2950.3,3.391]
[1766510259664,1.1824137,2950.9,2950.3,3.391]
[1766510259973,0.00828281,2950.9,2950.3,3.391]
[1766510265177,0.00828281,2950.9,2949.9,1.295]
[1766510265376,0.00828281,2950.9,2950.0,9.396]
[1766510265577,0.00828281,2950.9,2950.1,9.396]
[1766510267079,3.391,2951.1,2950.1,9.396]
[1766510268282,0.00508026,2950.9,2950.1,9.396]
[1766510268986,3.39,2951.3,2950.1,9.396]
[1766510269272,40.323,2952.3,2950.1,10.691]
[1766510269273,3.39,2951.6,2950.1,10.691]
[1766510269478,3.39,2951.6,2950.1,9.396]
[1766510270076,0.16946,2952.1,2950.3,1.81021055]
[1766510270270,0.16946,2952.1,2950.6,1.81021055]
[1766510270476,0.16946,2952.1,2950.7,17.872]
[1766510270978,0.00338689,2951.7,2950.7,17.872]
[1766510271284,0.0058114,2951.7,2950.7,17.872]
[1766510271983,3.55941,2952.9,2951.2,1.81021055]
[1766510272171,3.55941,2952.9,2951.3,9.396]
[1766510272976,3.56194163,2952.9,2951.8,0.00508026]
[1766510273184,3.56194163,2952.9,2951.9,9.396]
[1766510273377,3.56194163,2952.9,2951.9,9.39952988]
[1766510273987,3.56194163,2952.9,2951.9,0.00352988]
[1766510274188,3.56194163,2952.9,2952.0,3.39]
[1766510275183,1.81021055,2952.7,2951.9,0.00352988]
[1766510275384,1.81021055,2952.7,2950.1,0.16956]
[1766510275385,1.81021055,2952.4,2951.3,3.39]
[1766510275573,3.39,2952.3,2951.4,3.39]
[1766510276382,0.00508025,2952.1,2951.6,0.00508026]
[1766510279985,0.00508025,2952.1,2951.7,3.389]
[1766510281491,0.16943,2952.5,2951.7,3.389]
[1766510281890,0.00253163,2952.9,2951.9,1.81021055]
[1766510282079,1.3784743,2953.8,2952.2,1.81021055]
[1766510282080,3.389,2953.7,2952.2,1.81021055]
[1766510282279,3.389,2953.7,2952.3,5.837]
[1766510282686,3.389,2953.7,2951.9,1.81021055]
[1766510282882,3.389,2953.7,2952.0,51.759]
[1766510283093,3.39181967,2953.7,2952.0,51.759]
[1766510284389,3.39181967,2953.7,2952.3,1.81021055]
[1766510284594,3.39181967,2953.7,2952.4,3.389]
[1766510284794,3.39181967,2953.7,2952.5,6.007]
[1766510287699,2.79872297,2953.6,2952.1,8.471]
[1766510287999,3.39181967,2953.7,2952.2,9.394]
[1766510288000,1.15788242,2953.5,2952.2,9.394]
[1766510288201,3.388,2953.4,2952.2,9.394]
[1766510288796,3.39081967,2953.7,2952.2,11.20421055]
[1766510291507,3.39081967,2953.7,2952.3,17.864]
[1766510292299,3.39081967,2953.7,2951.8,0.16947]
[1766510292500,1.81021055,2953.4,2951.9,3.388]
[1766510292804,7.95940924,2953.3,2951.9,3.49]
[1766510293002,47.771,2953.3,2951.9,3.49]
[1766510293202,0.98848644,2953.2,2951.9,3.49]
[1766510293393,0.1694,2953.1,2951.9,3.49]
[1766510293596,3.388,2953.6,2952.0,1.81021055]
[1766510298003,3.388,2953.6,2951.9,3.49]
[1766510298403,0.99253139,2953.5,2951.9,3.49]
[1766510299507,0.99253139,2953.5,2952.0,51.741]
[1766510303008,0.99253139,2953.5,2951.7,2.21744251]
[1766510303208,0.99253139,2953.5,2952.0,33.878]
[1766510303410,0.99253139,2953.5,2952.1,3.387]
[1766510303603,0.99253139,2953.5,2952.2,6.014]
[1766510306409,0.99253139,2953.5,2952.3,17.87]
[1766510307911,7.07553139,2953.5,2952.1,8.469]
[1766510308099,0.99253139,2953.4,2952.2,4.6348]
[1766510308306,6.083,2953.5,2952.2,4.6348]
[1766510308307,0.16939,2953.2,2952.2,4.6348]
[1766510308600,0.99253139,2953.1,2952.2,4.6348]
[1766510312013,6.083,2953.5,2952.2,6.68277251]
[1766510313214,3.387,2953.6,2952.2,6.68277251]
[1766510314017,3.387,2953.6,2952.2,4.6348]
[1766510320012,3.387,2953.6,2952.4,1.17113193]
[1766510320221,3.387,2953.6,2952.5,3.387]
[1766510320919,0.00281967,2953.7,2952.9,1.17113193]
[1766510321114,0.00281967,2953.7,2953.0,3.387]
[1766510323219,0.00281967,2953.7,2953.2,1.17113193]
[1766510323515,3.387,2953.9,2953.2,1.17113193]
[1766510323516,3.387,2953.9,2953.2,0.00508026]
[1766510323721,3.387,2953.9,2953.1,3.26467525]
[1766510323722,1.17113193,2953.8,2953.1,3.26467525]
[1766510323924,1.17113193,2953.2,2951.4,33.87871181]
[1766510324112,11.855,2953.9,2951.4,33.87871181]
[1766510324113,1.34054193,2952.9,2951.5,11.855]
[1766510324312,4.72754193,2952.9,2951.6,6.013]
[1766510324513,4.73172825,2952.9,2951.7,6.013]
[1766510324722,0.00508026,2952.6,2952.0,0.00508026]
[1766510326025,3.39208026,2952.6,2952.0,0.00508026]
[1766510328418,1.17113193,2952.2,2951.4,0.00371181]
[1766510328725,3.387,2952.1,2951.4,0.00371181]
[1766510329425,1.17113193,2952.0,2951.3,0.06296207]
[1766510330629,1.17113193,2952.0,2951.4,0.00508026]
[1766510331527,1.17113193,2952.0,2951.3,0.00347229]
[1766510331924,3.6489,2952.1,2951.3,0.00347229]
[1766510332423,3.6489,2952.1,2951.4,0.00508026]
[1766510332927,3.387,2952.1,2951.4,0.00508026]
[1766510339035,3.387,2952.1,2951.3,3.39147229]
[1766510339533,0.2618,2952.2,2951.3,3.39147229]
[1766510339732,0.16944,2952.3,2951.3,3.39147229]
[1766510339733,3.388,2952.4,2951.3,8.64147229]
[1766510339932,3.388,2952.4,2951.6,0.00508026]
[1766510340238,3.388,2952.4,2951.7,3.388]
[1766510340629,0.00508026,2952.6,2951.7,3.388]
[1766510341934,0.00508026,2952.6,2951.8,3.388]
[1766510343036,3.388,2952.5,2951.6,0.00508026]
[1766510343337,3.388,2952.5,2951.5,3.388]
[1766510344530,0.16944,2952.3,2951.7,0.00338689]
[1766510344731,3.388,2952.2,2951.7,0.00338689]
[1766510345338,3.388,2952.2,2951.5,3.388]
[1766510345530,3.388,2952.2,2951.3,3.39147229]
[1766510354143,3.388,2952.2,2951.3,4.56350994]
[1766510357642,3.39308026,2952.6,2951.3,4.56350994]
[1766510359038,3.39308026,2952.6,2951.6,1.17203765]
[1766510359239,3.39308026,2952.6,2951.7,3.388]
[1766510360045,3.39308026,2952.6,2951.8,1.17173492]
[1766510360640,3.39308026,2952.6,2952.0,1.17173492]
[1766510360848,0.00508026,2952.6,2952.0,4.55973492]
[1766510362254,0.00508026,2952.6,2952.0,3.388]
[1766510363438,6.70733124,2952.9,2952.0,3.388]
[1766510363439,3.56159632,2952.9,2952.0,4.56481517]
[1766510363641,0.00418632,2952.9,2952.4,1.17173492]
[1766510363950,3.388,2953.2,2952.6,1.17173492]
[1766510364148,3.388,2953.2,2952.7,3.388]
[1766510364450,3.39308026,2953.2,2952.7,3.388]
[1766510364849,3.39577587,2953.2,2952.7,3.388]
[1766510366050,1.17173492,2953.1,2952.2,0.3007]
[1766510366247,3.39577587,2953.2,2952.0,1.17681517]
[1766510366448,1.17173492,2953.1,2952.1,3.688]
[1766510366747,4.56751079,2953.2,2952.2,1.17173492]
[1766510367059,3.39577587,2953.2,2952.4,1.17173492]
[1766510367243,0.00777587,2953.2,2952.8,1.17173492]
[1766510367446,3.388,2953.6,2952.9,3.388]
[1766510367849,1.47243492,2953.8,2952.9,3.388]
[1766510368048,1.17173492,2953.8,2952.9,3.388]
[1766510368345,0.00508026,2953.6,2952.9,3.388]
[1766510368554,1.17681518,2953.6,2952.9,3.388]
[1766510371962,3.39308026,2953.6,2952.6,5.79543492]
[1766510372251,3.39308026,2953.6,2952.7,3.388]
[1766510372459,3.39308026,2953.6,2952.8,1.17173492]
[1766510373660,6.077,2954.2,2952.7,3.388]
[1766510373661,0.1693,2954.8,2953.4,1.17173492]
[1766510373961,0.1693,2954.8,2953.9,1.17173492]
[1766510373962,3.5573,2954.8,2953.9,1.17173492]
[1766510374147,3.5573,2954.8,2953.9,3.388]
[1766510374750,0.00508026,2954.6,2954.1,0.00508026]
[1766510375156,1.17173492,2954.5,2953.4,1.17173492]
[1766510375459,1.17173492,2954.5,2953.5,3.387]
[1766510376159,3.387,2954.5,2953.7,0.00508026]
[1766510376361,3.387,2954.5,2953.8,3.387]
[1766510377756,3.387,2954.5,2953.5,0.002905]
[1766510377757,0.16933,2954.3,2953.5,0.002905]
[1766510377961,3.387,2954.2,2953.5,0.002905]
[1766510378261,3.387,2954.2,2953.2,3.387]
[1766510378664,3.387,2954.2,2953.4,0.00508025]
[1766510379060,3.387,2954.2,2953.4,0.00805304]
[1766510379262,3.387,2954.2,2952.9,9.5344]
[1766510379456,0.16934,2954.0,2952.9,9.5344]
[1766510379670,3.387,2953.9,2952.9,9.396]
[1766510380375,3.387,2953.9,2952.9,9.39873505]
[1766510384082,0.16936,2953.8,2952.9,0.00273505]
[1766510384285,0.16936,2953.8,2952.9,3.38973505]
[1766510386878,3.387,2953.9,2952.9,3.38973505]
[1766510387074,3.387,2954.3,2952.9,3.38973505]
[1766510387278,3.387,2954.3,2953.0,1.80586224]
[1766510387987,3.387,2954.3,2952.9,0.13863505]
[1766510388182,3.387,2954.3,2953.1,3.094]
[1766510390181,3.55633,2954.3,2953.0,0.1359]
[1766510390381,3.55633,2954.3,2953.2,5.434]
[1766510392291,3.55633,2954.3,2953.3,3.387]
[1766510392588,0.16933,2954.2,2953.3,3.387]
[1766510393287,0.16935,2953.9,2952.9,0.07183505]
[1766510393495,3.387,2953.8,2952.9,3.38973505]
[1766510399802,4.55799971,2953.8,2952.9,0.00273505]
[1766510400099,1.17099971,2953.6,2953.0,3.387]
[1766510401399,4.55799971,2953.8,2953.0,3.387]
[1766510401597,0.16932,2954.5,2953.5,1.17099971]
[1766510401798,3.387,2954.4,2953.6,3.387]
[1766510402704,0.00508026,2954.6,2953.8,1.17099971]
[1766510403001,1.17099971,2954.5,2953.5,0.06899999]
[1766510403194,1.17099971,2954.3,2953.6,3.387]
[1766510403395,1.17099971,2954.3,2953.7,3.387]
[1766510403706,3.387,2954.4,2953.7,3.387]
[1766510405402,0.00508026,2954.6,2953.7,3.387]
[1766510406309,3.387,2954.7,2953.7,5.1927186]
[1766510407202,0.00508026,2954.5,2953.9,0.00508026]
[1766510407406,0.00508026,2954.5,2954.0,3.386]
[1766510409105,0.17295874,2954.8,2954.0,3.386]
[1766510409300,3.386,2955.0,2954.0,7.13]
[1766510409502,6.071,2955.2,2954.0,7.13]
[1766510410001,6.24027,2955.2,2954.0,7.13]
[1766510410201,0.00508026,2954.9,2954.0,7.13]
[1766510410407,0.00763636,2954.9,2954.0,7.13]
[1766510410902,0.16931,2954.6,2953.8,0.1167]
[1766510411098,3.386,2954.5,2953.5,3.386]
[1766510411308,3.386,2954.5,2953.6,3.386]
[1766510411895,3.386,2954.5,2953.8,0.00508026]
[1766510412810,3.55531,2954.5,2953.5,3.386]
[1766510413703,1.8057186,2954.2,2952.1,1.8057186]
[1766510413898,1.8057186,2954.0,2952.9,3.38873505]
[1766510414100,3.386,2953.9,2952.9,3.38873505]
[1766510414301,3.55535,2953.9,2952.9,3.38873505]
[1766510414800,3.55535,2953.9,2952.9,0.00273505]
[1766510415001,3.55535,2953.9,2953.0,3.386]
[1766510416009,3.386,2953.9,2950.8,0.11796313]
[1766510416310,0.00508026,2953.2,2952.6,0.185]
[1766510416610,0.00508026,2953.2,2952.7,3.386]
[1766510417112,0.00508026,2953.2,2952.7,3.38863367]
[1766510417912,44.35536,2953.8,2952.7,3.38863367]
[1766510418215,3.55536,2953.8,2952.7,3.38863367]
[1766510418810,0.00508026,2953.5,2953.0,0.00508026]
[1766510421217,0.00508026,2953.5,2952.7,3.38863367]
[1766510426814,1.17127686,2952.8,2951.3,0.16949]
[1766510427019,3.387,2952.9,2951.5,1.17127686]
[1766510427817,3.39064478,2952.9,2951.7,1.17127686]
[1766510428018,3.39064478,2952.9,2951.8,3.387]
[1766510430405,3.39064478,2952.9,2951.9,6.005]
[1766510430613,3.39064478,2952.9,2952.0,3.387]
[1766510430814,3.39064478,2952.9,2951.5,0.00422648]
[1766510431014,1.17127686,2952.8,2951.6,9.392]
[1766510432213,1.17127686,2952.6,2951.6,9.392]
[1766510432412,1.17127686,2952.6,2951.7,9.392]
[1766510432612,1.17127686,2952.8,2951.7,9.392]
[1766510432819,3.56005478,2952.9,2951.7,9.392]
[1766510433019,3.56005478,2952.9,2951.8,1.17127686]
[1766510434412,1.17127686,2952.6,2951.8,3.387]
[1766510434616,1.17127686,2952.3,2951.8,3.387]
[1766510434816,4.55827686,2952.6,2951.8,3.387]
[1766510435022,4.74297686,2952.6,2951.8,3.387]
[1766510435219,4.55827686,2952.6,2951.8,3.387]
[1766510435415,3.387,2952.6,2951.8,4.55827686]
[1766510435929,0.00364478,2952.9,2951.8,4.55827686]
[1766510436421,3.39064478,2952.9,2951.8,4.55827686]
[1766510437520,0.00364478,2952.9,2951.8,4.55827686]
[1766510437821,0.00364478,2952.9,2951.8,3.387]
[1766510438217,3.39064478,2952.9,2951.9,5.909]
[1766510438415,3.39064478,2952.9,2951.9,9.296]
[1766510438924,3.39064478,2952.9,2951.8,0.1844]
[1766510439118,3.39064478,2952.9,2951.9,9.392]
[1766510439416,3.39064478,2952.9,2952.0,3.387]
[1766510440721,3.39064478,2952.9,2951.5,0.00422648]
[1766510441025,3.39064478,2952.9,2951.6,3.387]
[1766510441026,0.16942,2952.6,2951.6,3.387]
[1766510443821,0.16943,2952.5,2951.5,0.00422648]
[1766510444023,3.388,2952.4,2951.6,3.388]
[1766510444323,0.00508026,2952.3,2951.7,3.388]
[1766510445027,0.00508026,2952.3,2951.7,3.39209608]
[1766510449422,3.388,2952.4,2951.7,3.39209608]
[1766510449627,42.84898484,2953.5,2951.7,3.39209608]
[1766510449628,3.388,2952.8,2951.7,3.39209608]
[1766510450329,0.00508026,2952.5,2952.0,0.00508026]
[1766510452926,3.388,2952.8,2952.0,0.00508026]
[1766510453132,3.388,2952.8,2952.1,3.388]
[1766510453834,0.00508026,2952.7,2952.1,3.388]
[1766510458039,1.17209615,2952.6,2952.1,3.388]
[1766510458335,1.17209615,2952.3,2951.7,3.39209608]
[1766510458733,3.388,2952.5,2951.7,3.39209608]
[1766510459433,3.388,2952.5,2951.8,0.00508026]
[1766510459636,0.16942,2952.6,2951.8,0.00508026]
[1766510460334,0.00508026,2952.7,2951.9,1.17209615]
[1766510460533,3.388,2953.1,2952.3,1.17209615]
[1766510460842,3.388,2953.4,2952.4,3.388]
[1766510461038,3.388,2953.5,2952.5,4.784]
[1766510461537,0.00508026,2953.3,2952.5,4.784]
[1766510461930,0.00508026,2953.3,2952.5,6.004]
[1766510462135,0.00508026,2953.3,2952.6,3.388]
[1766510465639,0.00508026,2953.3,2952.4,6.004]
[1766510465833,0.00508026,2953.3,2952.6,3.388]
[1766510468550,0.00508026,2953.3,2951.6,0.16948]
[1766510468847,0.00508026,2953.3,2952.0,1.17209615]
[1766510470142,0.00508026,2953.3,2952.2,1.17209615]
[1766510470347,0.17280993,2953.5,2952.6,1.17209615]
[1766510470543,3.388,2953.8,2952.8,1.17209615]
[1766510470846,3.388,2953.8,2952.9,3.388]
[1766510471437,0.16933,2954.2,2953.0,1.17209615]
[1766510471635,0.16933,2954.2,2952.9,3.388]
[1766510471636,3.388,2954.1,2953.2,1.17209615]
[1766510471844,3.388,2954.1,2953.3,8.049]
[1766510472046,3.388,2954.1,2953.4,3.388]
[1766510472637,0.00508026,2954.0,2953.5,0.00508026]
[1766510472836,0.00508026,2954.0,2953.5,3.39208026]
[1766510473041,0.00508026,2954.0,2953.5,0.00508026]
[1766510473237,1.17717641,2954.0,2953.2,6.002]
[1766510473461,0.00508026,2954.0,2953.3,3.387]
[1766510474342,0.00508026,2954.0,2953.4,0.00508026]
[1766510474539,3.388,2954.1,2953.5,1.17209615]
[1766510474749,0.00374743,2954.2,2953.6,3.387]
[1766510475552,0.00882769,2954.2,2953.6,3.387]
[1766510478652,3.387,2954.4,2953.6,3.387]
[1766510479659,0.00508026,2954.3,2953.5,3.387]
[1766510481454,0.00508026,2954.3,2953.4,0.00508026]
[1766510481657,0.16934,2954.1,2952.7,3.387]
[1766510481856,3.387,2954.0,2952.7,1.972]
[1766510482061,5.19408975,2954.0,2952.8,3.387]
[1766510482755,5.19408975,2954.0,2953.1,0.00508026]
[1766510482947,5.36342975,2954.0,2953.1,0.00508026]
[1766510483460,0.16937,2953.6,2952.6,3.387]
[1766510483649,3.55637,2953.5,2951.7,0.05659608]
[1766510483851,3.55637,2953.5,2951.8,16.693]
[1766510484260,3.55637,2953.5,2952.4,0.00508026]
[1766510484456,3.55637,2953.5,2952.5,3.387]
[1766510486859,0.16937,2953.5,2952.5,3.387]
[1766510487159,3.387,2953.8,2952.5,3.387]
[1766510490360,3.387,2953.8,2952.6,14.808]
[1766510490561,3.387,2953.8,2952.7,6.001]
[1766510490757,3.387,2953.8,2952.8,3.387]
[1766510491559,3.387,2953.8,2952.7,0.06139999]